fUSD/lending_fUSD_20250313
["ID","MTS","AMOUNT","RATE_DAILY","PERIOD"]
[356101183,1741904710568,10000.0,0.0001,2]
[356101184,1741904710594,10000.0,0.0001,2]
[356101185,1741904710619,10000.0,0.0001,2]
[356101186,1741904710647,10000.0,0.0001,2]
[356101187,1741904710673,10000.0,0.0001,2]
[356101188,1741904710698,10000.0,0.0001,2]
[356101189,1741904710731,1404560.54436678,0.0001,2]
[356101190,1741904710759,664838.62004731,0.0001,2]
[356101191,1741904710799,1239841.91333467,0.0001,2]
[356101192,1741904766257,-225.4,0.00019,2]
[356101194,1741904770381,-331.881,0.00025423,120]
[356101196,1741904779271,20053.36245315,9.8e-05,3]
[356101199,1741904824927,-150.0,0.00019,2]
[356101200,1741904826305,-595.64,0.00019,2]
[356101242,1741904855969,1902.54340255,9.99e-05,2]
[356101243,1741904880419,149417.9270833,0.0001,2]
[356101244,1741904899743,-204.21839202,0.00018999,2]
[356101246,1741904912576,197.33246286,9.828e-05,2]
[356101250,1741904932206,-795.953,0.00012,2]
[356101251,1741904942801,-170.37213,0.00012,2]
[356101252,1741904974944,-350.0,0.00012,2]
[356101253,1741904976262,-150.0,0.00012,2]
[356101254,1741904980775,-150.0,0.00012,2]
[356101258,1741905008226,-150.0,0.00012,2]
[356101259,1741905011114,-150.0,0.00012,2]
[356101266,1741905032467,-825.46711906,0.00012,2]
[356101267,1741905032489,-1440.07193087,0.00012,2]
[356101268,1741905032498,-150.0,0.000132,2]
[356101269,1741905032507,-550.0,0.000132,2]
[356101270,1741905032518,-373.02860681,0.00015856,2]
[356101271,1741905032527,-278.56461967,0.00018899,2]
[356101272,1741905032537,-33612.62994801,0.00019,2]
[356101273,1741905032546,-302.289552,0.00019,15]
[356101274,1741905032556,-1224.92034429,0.0002,10]
[356101275,1741905032565,-204.21839202,0.000209,2]
[356101276,1741905032575,-150.0,0.0002301,2]
[356101277,1741905032584,-500.0,0.00023011,30]
[356101278,1741905032594,-500.0,0.00023011,30]
[356101279,1741905032603,-500.0,0.00023011,30]
[356101280,1741905032612,-500.0,0.00023011,30]
[356101281,1741905032622,-500.0,0.00023011,30]
[356101282,1741905032631,-500.0,0.00023011,30]
[356101283,1741905032640,-823.44365775,0.00023011,30]
[356101284,1741905032650,-1054.0,0.000235,2]
[356101285,1741905032659,-9784.39313668,0.00024,14]
[356101286,1741905032669,-826.88,0.00024041,2]
[356101287,1741905032679,-1980.76975478,0.00024067,2]
[356101288,1741905032689,-1022.48625791,0.000241,2]
[356101289,1741905032699,-1716.794,0.00024257,6]
[356101290,1741905032708,-199.452,0.00024257,6]
[356101291,1741905032717,-86825.11311643,0.00024258,13]
[356101292,1741905032727,-1716.19,0.00024258,2]
[356101293,1741905032736,-182.69,0.00024854,2]
[356101294,1741905032746,-204.21839196,0.000249,4]
[356101295,1741905032755,-20511.03099453,0.00025,2]
[356101296,1741905032768,-11845.65513876,0.00025,2]
[356101297,1741905032778,-1057.0,0.00025,7]
[356101298,1741905032787,-161.68,0.00025132,2]
[356101299,1741905032796,-454.979,0.00025423,120]
[356101300,1741905032806,-200.0,0.00025433,2]
[356101301,1741905032815,-2000.0,0.00025462,2]
[356101302,1741905032825,-954.72,0.00025479,2]
[356101303,1741905032834,-2033.0,0.00025513,2]
[356101304,1741905032843,-1279.0,0.00025513,2]
[356101305,1741905032853,-3989.15,0.00025532,2]
[356101306,1741905032863,-200.0,0.00025548,2]
[356101307,1741905032874,-150.0,0.00025557,7]
[356101308,1741905032884,-164.70734721,0.00025564,2]
[356101309,1741905032894,-1000.0,0.00025605,2]
[356101310,1741905032904,-855.71,0.00025605,2]
[356101311,1741905032915,-215.44,0.00025664,2]
[356101312,1741905032924,-465.84,0.00025677,30]
[356101313,1741905032934,-180.7,0.00025758,2]
[356101314,1741905032943,-164.70734715,0.00025798,2]
[356101315,1741905032954,-180.7,0.00025826,2]
[356101316,1741905032965,-168.92,0.00025853,2]
[356101317,1741905032974,-561.99,0.00025864,120]
[356101318,1741905032984,-180.7,0.00025894,2]
[356101319,1741905032994,-180.7,0.00025962,2]
[356101320,1741905033003,-5104.59307353,0.0002598,10]
[356101321,1741905033012,-180.7,0.00026029,2]
[356101322,1741905033022,-164.70734715,0.00026031,2]
[356101323,1741905033031,-180.7,0.00026097,2]
[356101324,1741905033041,-528.94917864,0.00026141,2]
[356101325,1741905033050,-180.7,0.00026165,2]
[356101326,1741905033060,-23900.0,0.00026165,2]
[356101327,1741905033070,-446.52,0.00026203,2]
[356101328,1741905033079,-300.0,0.00026227,2]
[356101329,1741905033089,-180.7,0.00026233,2]
[356101330,1741905033099,-2101.87,0.00026263,2]
[356101331,1741905033109,-164.70734715,0.00026265,2]
[356101332,1741905033118,-7315.21448548,0.0002629,2]
[356101333,1741905033132,-619.85266026,0.0002629,2]
[356101334,1741905033144,-1184.17281378,0.0002629,2]
[356101335,1741905033535,-405.70529999,0.0002629,2]
[356101336,1741905033562,-580.65178373,0.0002629,2]
[356101337,1741905033572,-91.15590419,0.000263,2]
[356101352,1741905038281,-3933.0,0.00025513,2]
[356101353,1741905038291,-89.54409581,0.000263,2]
[356101354,1741905038301,-165.867422,0.00026304,18]
[356101355,1741905038310,-826.88,0.00026305,2]
[356101356,1741905038320,-180.7,0.00026368,2]
[356101357,1741905038329,-250.0,0.00026377,2]
[356101358,1741905038339,-711.65,0.00026379,3]
[356101359,1741905038348,-509.95,0.00026379,3]
[356101360,1741905038357,-500.0,0.00026379,3]
[356101361,1741905038366,-500.0,0.00026379,3]
[356101362,1741905038376,-2151.13,0.00026379,3]
[356101363,1741905038385,-1896.04,0.00026379,3]
[356101364,1741905038395,-500.0,0.00026379,3]
[356101365,1741905038405,-1048.0,0.00026379,3]
[356101366,1741905038414,-1781.64,0.00026379,3]
[356101367,1741905038423,-500.0,0.00026379,3]
[356101368,1741905038433,-500.0,0.00026379,3]
[356101369,1741905038442,-500.0,0.00026379,3]
[356101370,1741905038451,-500.0,0.00026379,3]
[356101371,1741905038460,-500.03530293,0.00026379,2]
[356101372,1741905038470,-500.0,0.00026379,3]
[356101373,1741905038479,-500.0,0.00026379,3]
[356101374,1741905038488,-500.0,0.00026379,3]
[356101375,1741905038497,-500.0,0.00026379,3]
[356101376,1741905038507,-14887.9191987,0.0002638,2]
[356101377,1741905038521,-10389.18546102,0.0002638,2]
[356101378,1741905038554,-3209.43957806,0.0002638,2]
[356101384,1741905040408,-410.04586005,0.00026379,3]
[356101385,1741905040542,-89.95413995,0.00026379,3]
[356101386,1741905040552,-96.12265048,0.00026379,3]
[356101387,1741905040600,-3082.08734952,0.00026379,3]
[356101388,1741905040610,-4404.67917179,0.0002638,2]
[356101389,1741905040622,-520.933954,0.0002638,2]
[356101390,1741905040650,-1084.98818625,0.0002638,2]
[356101391,1741905040804,-3011.1596589,0.0002638,2]
[356101392,1741905040823,-374.78499999,0.0002638,2]
[356101393,1741905040834,-3594.85851551,0.0002638,2]
[356101394,1741905041372,-290.42254486,0.00026379,3]
[356101400,1741905043463,-1263.31745514,0.00026379,3]
[356101401,1741905043472,-616.30964493,0.00026379,3]
[356101410,1741905046582,-882.97035507,0.00026379,3]
[356101411,1741905046592,-500.0,0.00026379,3]
[356101412,1741905046603,-500.0,0.00026379,3]
[356101413,1741905046613,-500.0,0.00026379,3]
[356101414,1741905046623,-739.63371111,0.0002638,2]
[356101415,1741905046634,-3640.4458782,0.0002638,2]
[356101416,1741905046646,-29890.84013657,0.0002638,2]
[356101417,1741905046655,-175.14,0.00026392,2]
[356101418,1741905046664,-500.0,0.00026415,3]
[356101419,1741905046675,-500.0,0.00026415,3]
[356101420,1741905046684,-500.0,0.00026415,3]
[356101421,1741905046693,-859.08,0.00026415,3]
[356101422,1741905046703,-500.0,0.00026415,3]
[356101423,1741905046712,-740.46,0.00026415,3]
[356101424,1741905046721,-500.0,0.00026415,3]
[356101425,1741905046730,-580.75,0.00026415,3]
[356101426,1741905046739,-1014.13,0.00026415,3]
[356101427,1741905046750,-584.57,0.00026415,3]
[356101428,1741905046759,-561.6,0.00026415,3]
[356101429,1741905046768,-500.0,0.00026415,3]
[356101430,1741905046778,-500.0,0.00026415,3]
[356101431,1741905046787,-555.47,0.00026415,3]
[356101432,1741905046797,-180.7,0.00026436,2]
[356101433,1741905046806,-164.70734715,0.00026499,2]
[356101434,1741905046815,-180.7,0.00026504,2]
[356101435,1741905046824,-180.7,0.00026572,2]
[356101436,1741905046834,-180.7,0.00026639,2]
[356101437,1741905046843,-711.65,0.00026653,3]
[356101438,1741905046852,-509.95,0.00026653,3]
[356101439,1741905046861,-500.0,0.00026653,3]
[356101440,1741905046871,-500.0,0.00026653,3]
[356101441,1741905046882,-2151.13,0.00026653,3]
[356101442,1741905046891,-500.0,0.00026653,3]
[356101444,1741905046900,-1048.0,0.00026653,3]
[356101446,1741905046909,-1781.64,0.00026653,3]
[356101447,1741905046919,-500.0,0.00026653,3]
[356101449,1741905046928,-500.0,0.00026653,3]
[356101451,1741905046938,-500.0,0.00026653,3]
[356101453,1741905046949,-500.0,0.00026653,3]
[356101455,1741905046958,-500.0,0.00026653,3]
[356101457,1741905046967,-500.0,0.00026653,3]
[356101459,1741905046977,-500.0,0.00026653,3]
[356101461,1741905046986,-500.0,0.00026653,3]
[356101463,1741905046995,-500.0,0.00026653,3]
[356101465,1741905047006,-3178.21,0.00026653,3]
[356101467,1741905047015,-1553.74,0.00026653,3]
[356101469,1741905047024,-1499.28,0.00026653,3]
[356101471,1741905047034,-500.0,0.00026653,3]
[356101473,1741905047043,-500.0,0.00026653,3]
[356101475,1741905047052,-500.0,0.00026653,3]
[356101477,1741905047062,-500.0,0.00026689,3]
[356101479,1741905047071,-500.0,0.00026689,3]
[356101481,1741905047080,-500.0,0.00026689,3]
[356101483,1741905047089,-859.08,0.00026689,3]
[356101484,1741905047098,-500.0,0.00026689,3]
[356101486,1741905047108,-740.46,0.00026689,3]
[356101488,1741905047117,-500.0,0.00026689,3]
[356101490,1741905047126,-580.75,0.00026689,3]
[356101492,1741905047135,-1014.13,0.00026689,3]
[356101494,1741905047145,-584.57,0.00026689,3]
[356101496,1741905047154,-561.6,0.00026689,3]
[356101498,1741905047164,-500.0,0.00026689,3]
[356101500,1741905047174,-500.0,0.00026689,3]
[356101502,1741905047183,-180.7,0.00026707,2]
[356101504,1741905047192,-164.70734715,0.00026733,2]
[356101506,1741905047201,-2884.2428596,0.00026753,4]
[356101508,1741905047211,-180.7,0.00026775,2]
[356101510,1741905047220,-180.7,0.00026843,2]
[356101512,1741905047229,-166.27,0.00026849,2]
[356101514,1741905047238,-2500.0,0.00026852,2]
[356101516,1741905047247,-180.7,0.0002691,2]
[356101518,1741905047256,-711.65,0.00026927,3]
[356101520,1741905047265,-509.95,0.00026927,3]
[356101521,1741905047275,-500.0,0.00026927,3]
[356101523,1741905047284,-500.0,0.00026927,3]
[356101526,1741905047294,-2151.13,0.00026927,3]
[356101527,1741905047304,-500.0,0.00026927,3]
[356101529,1741905047313,-1048.0,0.00026927,3]
[356101531,1741905047322,-1781.64,0.00026927,3]
[356101533,1741905047332,-500.0,0.00026927,3]
[356101535,1741905047341,-500.0,0.00026927,3]
[356101537,1741905047350,-500.0,0.00026927,3]
[356101539,1741905047359,-500.0,0.00026927,3]
[356101541,1741905047368,-500.0,0.00026927,3]
[356101542,1741905047377,-500.0,0.00026927,3]
[356101544,1741905047386,-500.0,0.00026927,3]
[356101546,1741905047395,-500.0,0.00026927,3]
[356101548,1741905047404,-500.0,0.00026927,3]
[356101550,1741905047413,-3178.21,0.00026927,3]
[356101552,1741905047422,-1553.74,0.00026927,3]
[356101554,1741905047431,-1499.28,0.00026927,3]
[356101556,1741905047440,-500.0,0.00026927,3]
[356101558,1741905047450,-500.0,0.00026927,3]
[356101560,1741905047459,-4402.25471973,0.00026942,2]
[356101562,1741905047468,-643.0,0.00026951,2]
[356101564,1741905047477,-905.2656,0.00026952,2]
[356101566,1741905047486,-16851.5429898,0.00026952,2]
[356101570,1741905047518,-555.47,0.00026689,3]
[356101572,1741905047528,-7906.83,0.00026952,2]
[356101577,1741905047564,-500.0,0.00026927,3]
[356101579,1741905047573,-7850.80513989,0.00026952,2]
[356101584,1741905047611,-941.97,0.00026415,3]
[356101586,1741905047620,-3464.28,0.00026952,2]
[356101588,1741905047631,-988.304624,0.00026952,2]
[356101700,1741906231552,-348.0,0.0002301,2]
[356101701,1741906231562,-146.2475,0.00023011,2]
[356101702,1741906231574,-3.7525,0.00023011,2]
[356101703,1741906231583,-254.28802739,0.00023011,30]
[356101704,1741906231731,-245.71197261,0.00023011,30]
[356101705,1741906231741,-106.58773013,0.00023011,30]
[356101714,1741906237606,-393.41226987,0.00023011,30]
[356101715,1741906237615,-500.0,0.00023011,30]
[356101716,1741906237625,-500.0,0.00023011,30]
[356101717,1741906237635,-500.0,0.00023011,30]
[356101718,1741906237644,-550.0,0.00023305,2]
[356101719,1741906237654,-868.8,0.00023598,2]
[356101720,1741906237663,-171.28,0.00024903,2]
[356101721,1741906237672,-849.73725861,0.00024909,2]
[356101722,1741906237683,-1285.97,0.00024909,2]
[356101723,1741906237695,-2733.12966439,0.00024909,2]
[356101724,1741906237704,-244.7,0.0002502,2]
[356101725,1741906237714,-1500.0,0.00025035,2]
[356101726,1741906237723,-2000.0,0.00025158,2]
[356101727,1741906237732,-1000.0,0.00025191,2]
[356101728,1741906237741,-670.5,0.00025199,2]
[356101729,1741906237750,-11995.99,0.0002524,2]
[356101730,1741906237759,-150.0,0.00025311,2]
[356101731,1741906237768,-550.0,0.00025312,2]
[356101732,1741906237777,-550.0,0.00025312,2]
[356101733,1741906237787,-150.0,0.00025312,2]
[356101734,1741906237796,-200.0,0.00025318,2]
[356101735,1741906237806,-855.0,0.00025513,120]
[356101736,1741906237815,-427.02,0.00025623,30]
[356101737,1741906237824,-156.76,0.00025734,2]
[356101738,1741906237834,-750.0,0.00025776,2]
[356101739,1741906237843,-299.99,0.00025777,7]
[356101740,1741906237852,-267.08,0.00025777,2]
[356101741,1741906237862,-1999.02,0.00025777,2]
[356101742,1741906237871,-15473.72592141,0.00025777,2]
[356101743,1741906237882,-29422.48945119,0.00025777,2]
[356101744,1741906237891,-1344.5454,0.00025815,2]
[356101745,1741906237901,-868.8,0.00025862,2]
[356101746,1741906237910,-500.0,0.00025896,3]
[356101748,1741906237919,-400.0,0.000259,9]
[356101749,1741906237928,-203.93526834,0.000259,4]
[356101751,1741906237938,-15688.20827523,0.00025915,2]
[356101754,1741906237950,-6895.79172477,0.00025915,2]
[356101755,1741906237959,-170.25,0.00025975,2]
[356101758,1741906237968,-250.0,0.00026081,2]
[356101760,1741906237978,-151.6906,0.000262,2]
[356101761,1741906237987,-6284.4955,0.000262,2]
[356101763,1741906237997,-6926.01042304,0.00026268,2]
[356101765,1741906238006,-1233.3899,0.00026277,2]
[356101767,1741906238015,-366.741,0.00026277,2]
[356101769,1741906238025,-3300.57626101,0.00026277,2]
[356101772,1741906238036,-1281.315,0.00026277,2]
[356101774,1741906238052,-367.82323899,0.00026277,2]
[356101776,1741906238061,-230.5902861,0.00026277,2]
[356101778,1741906238070,-7619.03147254,0.00026278,2]
[356101780,1741906238079,-160.15726509,0.00026278,2]
[356101782,1741906238088,-1000.0,0.00026278,2]
[356101783,1741906238097,-1000.0,0.00026278,2]
[356101784,1741906238106,-2500.0,0.00026278,2]
[356101785,1741906238116,-1382.768,0.00026278,2]
[356101786,1741906238124,-807.8543,0.00026278,2]
[356101787,1741906238133,-7730.029,0.00026279,2]
[356101788,1741906238142,-1647.55880942,0.00026279,2]
[356101789,1741906238153,-647.01660927,0.00026279,2]
[356101792,1741906239803,-1094.0,0.00026279,2]
[356101793,1741906239843,-30962.54540535,0.00026279,2]
[356101794,1741906239857,-2042.23017596,0.00026279,2]
[356101795,1741906239867,-313.8626,0.00026279,2]
[356101796,1741906239877,-9263.61060741,0.000263,2]
[356101797,1741906239891,-8963.85027876,0.000263,2]
[356101798,1741906240064,-130.83868172,0.000263,2]
[356101840,1741906242883,-787.7183,0.00026277,2]
[356101841,1741906242892,-48889.8679,0.00026279,3]
[356101842,1741906242902,-3556.50162684,0.000263,2]
[356101843,1741906242911,-273.70719455,0.00026348,2]
[356101844,1741906242920,-1144.23,0.00026368,3]
[356101845,1741906242930,-917.0,0.00026368,3]
[356101846,1741906242939,-500.0,0.00026368,3]
[356101847,1741906242949,-500.0,0.00026368,3]
[356101848,1741906242958,-1311.87,0.00026368,3]
[356101849,1741906242968,-1881.28,0.00026368,3]
[356101850,1741906242977,-10025.77093824,0.00026368,2]
[356101851,1741906242989,-2236.59491555,0.00026368,2]
[356101852,1741906243747,-2422.8605,0.00026368,2]
[356101853,1741906243759,-483.555,0.00026368,2]
[356101854,1741906245638,-821.9187,0.00026368,2]
[356101855,1741906245651,-5199.88223325,0.00026368,2]
[356101856,1741906245662,-376.3095366,0.00026368,2]
[356101857,1741906245674,-263.258183,0.00026368,2]
[356101858,1741906245759,-1484.73048015,0.00026368,2]
[356101859,1741906245771,-856.7929336,0.00026368,2]
[356101860,1741906245783,-1777.82219891,0.00026368,2]
[356101861,1741906245803,-2664.999995,0.00026368,2]
[356101862,1741906245962,-1131.1209526,0.00026368,2]
[356101876,1741906928876,-150.0,0.00019964,2]
[356101877,1741906940450,-153.89,0.00023011,30]
[356101878,1741906982716,-26.79,0.00019964,2]
[356101879,1741906982743,-143.36,0.00021,2]
[356101880,1741906983830,-150.0,0.00021,2]
[356101881,1741907075538,-204.64450131,0.00021,2]
[356101882,1741907235619,-51.99549869,0.00021,2]
[356101883,1741907235642,-216.94516499,0.00023,2]
[356101899,1741907432108,-355.62354871,0.00023,2]
[356101900,1741907432248,-27.4312863,0.00023,2]
[356101901,1741907432258,-346.11,0.00023011,30]
[356101902,1741907432268,-500.0,0.00023011,30]
[356101903,1741907432278,-1077.46,0.0002348,2]
[356101904,1741907432288,-449.51270681,0.00024819,2]
[356101933,1741907437837,-30.74729319,0.00024819,2]
[356101934,1741907437847,-150.0,0.00024821,2]
[356101935,1741907437856,-104.89306181,0.00024852,2]
[356101936,1741907437868,-95.10693819,0.00024852,2]
[356101937,1741907437877,-2000.0,0.00024855,2]
[356101938,1741907437886,-112.28855981,0.00024879,2]
[356101939,1741907437914,-1340.82144019,0.00024879,2]
[356101940,1741907437923,-1931.97355981,0.00024879,2]
[356101946,1741907439921,-11834.25927007,0.00024879,2]
[356101947,1741907439977,-10133.76717012,0.00024879,2]
[356101948,1741907439989,-200.0,0.0002489,2]
[356101949,1741907439999,-224.8536126,0.00024969,2]
[356101950,1741907440011,-330.49179564,0.00024969,2]
[356101951,1741907440022,-444.65459176,0.00024969,2]
[356101952,1741907440032,-200.0,0.0002498,2]
[356101953,1741907440041,-285.26451146,0.00025,2]
[356101954,1741907440053,-364.73548854,0.00025,2]
[356101955,1741907440062,-106.03451149,0.0002502,30]
[356101956,1741907440074,-330.63548851,0.0002502,30]
[356101957,1741907440084,-360.79,0.00025158,2]
[356101958,1741907440093,-250.0,0.00025158,2]
[356101959,1741907440103,-308.73,0.00025386,2]
[356101960,1741907440112,-449.59,0.00025398,120]
[356101961,1741907440122,-175.34,0.00025414,2]
[356101962,1741907440132,-308.73,0.00025453,2]
[356101963,1741907440142,-308.73,0.00025519,2]
[356101964,1741907440151,-7.45451149,0.00025531,2]
[356101965,1741907440192,-324.2409,0.00025531,2]
[356101966,1741907440324,-0.00156997,0.00025531,2]
[356101967,1741907442530,-150.0,0.00025531,2]
[356101969,1741907442871,-68.30301854,0.00025531,2]
[356101970,1741907442880,-308.73,0.00025586,2]
[356101971,1741907442894,-169.95,0.00025598,2]
[356101972,1741907442903,-281.33361061,0.00025653,2]
[356101973,1741907442915,-27.39638939,0.00025653,2]
[356101974,1741907442924,-199.452,0.00025653,10]
[356101975,1741907442933,-2093.416,0.00025653,10]
[356101976,1741907442943,-49.99178296,0.0002572,2]
[356101978,1741907445783,-171.7,0.00025118,120]
[356101979,1741907445792,-258.73821704,0.0002572,2]
[356101980,1741907445801,-1077.46,0.00025744,2]
[356101981,1741907445809,-308.73,0.00025786,2]
[356101982,1741907445819,-776.84,0.000258,2]
[356101983,1741907445827,-400.0,0.000258,9]
[356101984,1741907445836,-308.73,0.00025853,2]
[356101985,1741907445845,-800.0,0.000259,9]
[356101986,1741907445855,-204.03048908,0.000259,4]
[356101987,1741907445863,-308.73,0.0002592,2]
[356101988,1741907445872,-248.03164206,0.00025963,2]
[356101989,1741907445887,-301.96835794,0.00025963,2]
[356101990,1741907445896,-308.73,0.00025987,2]
[356101991,1741907445906,-206.61641646,0.00026,120]
[356101992,1741907445925,-325.622,0.00026,120]
[356101993,1741907446092,-267.76158354,0.00026,120]
[356101994,1741907446102,-308.73,0.00026054,2]
[356101995,1741907446112,-197.18784,0.000261,37]
[356101996,1741907446122,-39796.14787645,0.0002611,2]
[356101997,1741907446134,-813.8,0.0002611,2]
[356101998,1741907446146,-1000.0,0.0002611,2]
[356101999,1741907446165,-4903.859803,0.0002611,2]
[356102000,1741907446175,-308.73,0.0002612,2]
[356102001,1741907446184,-313.8626,0.00026161,2]
[356102002,1741907446194,-353.6987,0.00026177,2]
[356102003,1741907446204,-207.53125749,0.00026177,2]
[356102004,1741907446213,-308.73,0.00026187,2]
[356102005,1741907446222,-308.73,0.00026254,2]
[356102006,1741907446231,-907.0,0.00026261,2]
[356102007,1741907446241,-2882.61279951,0.00026261,2]
[356102008,1741907446253,-638.31958278,0.00026261,2]
[356102012,1741907451249,-189.2898887,0.00026261,2]
[356102014,1741908321547,-386.66,0.0002,10]
[356102015,1741908356186,17773.40601944,9.88e-05,2]
[356102019,1741908411747,10000.0,9.7e-05,2]
[356102029,1741908438160,-209.48933632,0.00023011,30]
[356102030,1741908450370,-290.51066368,0.00023011,30]
[356102031,1741908450396,-41.37033632,0.00023011,30]
[356102032,1741908466143,-203.88382571,0.0002,10]
[356102033,1741908467293,-188.93617429,0.0002,10]
[356102041,1741908582031,-327.5585,0.0002,10]
[356102045,1741908605879,-243.8401113,0.0002,10]
[356102061,1741908632094,-300.0,0.00019999,2]
[356102062,1741908632104,-19824.27032031,0.0002,10]
[356102063,1741908632115,-420.0,0.00021777,2]
[356102064,1741908632125,-203.88382571,0.000219,3]
[356102065,1741908632134,-209.48933632,0.000228,2]
[356102066,1741908632145,-500.0,0.00023,10]
[356102067,1741908632154,-458.62966368,0.00023011,30]
[356102068,1741908632164,-1043.83,0.00023378,2]
[356102069,1741908632174,-587.0,0.00023712,2]
[356102070,1741908632184,-203.88382571,0.00024718,3]
[356102071,1741908632194,-1619.44774362,0.000249,2]
[356102072,1741908632204,-219.99377727,0.0002499,2]
[356102073,1741908632213,-5657.40483092,0.0002499,2]
[356102074,1741908632223,-150.0,0.00024999,2]
[356102075,1741908632232,-843.71,0.00024999,3]
[356102076,1741908632242,-923.25,0.00024999,3]
[356102077,1741908632251,-685.19,0.00024999,3]
[356102078,1741908632261,-500.0,0.00024999,3]
[356102079,1741908632270,-500.0,0.00024999,3]
[356102080,1741908632279,-500.0,0.00024999,3]
[356102081,1741908632289,-483.47508985,0.00024999,21]
[356102082,1741908632299,-30000.0,0.00025,10]
[356102083,1741908632308,-30000.0,0.00025,10]
[356102084,1741908632318,-30000.0,0.00025,10]
[356102085,1741908632328,-30000.0,0.00025,10]
[356102086,1741908632337,-27566.6009229,0.00025,10]
[356102087,1741908632349,-1000.0,0.00025,10]
[356102104,1741908632598,-1433.3990771,0.00025,10]
[356102106,1741908632607,-30000.0,0.00025,10]
[356102107,1741908632616,-151.0,0.00025,7]
[356102109,1741908632626,-151.0,0.00025,7]
[356102111,1741908632636,-464.348144,0.00025,7]
[356102113,1741908632645,-151.0,0.00025,7]
[356102115,1741908632654,-464.348144,0.00025,7]
[356102117,1741908632664,-151.0,0.00025,7]
[356102119,1741908632673,-151.0,0.00025,7]
[356102121,1741908632683,-299.551692,0.00025,7]
[356102123,1741908632693,-843.71,0.00025027,3]
[356102125,1741908632702,-923.25,0.00025027,3]
[356102127,1741908632711,-685.19,0.00025027,3]
[356102129,1741908632721,-529.77636592,0.00025027,3]
[356102131,1741908632730,-500.0,0.00025027,3]
[356102132,1741908632739,-500.0,0.00025027,3]
[356102134,1741908632749,-843.71,0.00025054,3]
[356102136,1741908632758,-923.25,0.00025054,3]
[356102138,1741908632767,-685.19,0.00025054,3]
[356102140,1741908632777,-500.0,0.00025054,3]
[356102142,1741908632786,-858.78360821,0.00025058,2]
[356102144,1741908632795,-1619.44774361,0.0002506,2]
[356102146,1741908632805,-843.71,0.00025081,3]
[356102148,1741908632815,-923.25,0.00025081,3]
[356102150,1741908632823,-685.19,0.00025081,3]
[356102152,1741908632833,-500.0,0.00025081,3]
[356102154,1741908632842,-843.71,0.00025109,3]
[356102156,1741908632851,-923.25,0.00025109,3]
[356102157,1741908632860,-685.19,0.00025109,3]
[356102159,1741908632869,-500.0,0.00025109,3]
[356102161,1741908632879,-843.71,0.00025136,3]
[356102163,1741908632888,-923.25,0.00025136,3]
[356102165,1741908632897,-685.19,0.00025136,3]
[356102167,1741908632908,-500.0,0.00025136,3]
[356102169,1741908632917,-150.0,0.00025158,7]
[356102171,1741908632926,-169.99,0.0002516,2]
[356102173,1741908632935,-843.71,0.00025164,3]
[356102175,1741908632944,-923.25,0.00025164,3]
[356102177,1741908632953,-685.19,0.00025164,3]
[356102179,1741908632964,-500.0,0.00025164,3]
[356102180,1741908632973,-150.0,0.00025176,2]
[356102182,1741908632982,-843.71,0.00025191,3]
[356102184,1741908632991,-923.25,0.00025191,3]
[356102186,1741908633001,-685.19,0.00025191,3]